[Event "European Women-ch 2023"]
[Site "Petrovac"]
[Date "2023.03.21"]
[Round "4.2"]
[White "Slaba, Andrea"]
[Black "Gueci, Tea"]
[Result "1-0"]
[ECO "D31"]
[WhiteElo "2061"]
[BlackElo "2227"]
[Annotator "TA"]
[PlyCount "127"]
[EventDate "2023.03.15"]
[EventType "swiss"]
[EventCountry "MNE"]
[SourceTitle "playchess.com"]
[Source "ChessBase"]
[SourceQuality "1"]
[TimeControl "40/5400+30:1800+30"]

{[%evp 9,127,26,22,21,18,32,26,15,8,7,9,6,39,40,25,35,43,39,45,36,42,31,22,29,42,29,50,47,56,57,67,0,54,45,60,37,82,43,81,18,89,41,45,38,56,43,47,40,87,88,206,197,221,212,229,215,226,215,233,234,304,222,243,248,239,243,243,194,223,184,204,194,212,202,302,184,210,183,225,120,162,161,162,145,166,171,174,162,168,116,311,311,310,303,264,241,395,312,872,911,643,616,1206,1122,1154,1094,944,936,821,674,29965,29969,29968,29968,29975,29966,7112,5708,1469,1034]} 1. Nf3 {[%emt 0:00:02]} d5 {[%emt 0:00:05]} 2. d4 {[%emt 0:00:11]} e6 {[%emt 0:00:12]} 3. c4 {[%emt 0:00:12]} a6 {[%emt 0:00:03]} 4. cxd5 {[%emt 0:02:08]} exd5 {[%emt 0:00:06]} 5. Nc3 {[%emt 0:00:04]} h6 {[%emt 0:01:05]} 6. Bf4 {[%emt 0:00:51] D31: Queen's Gambit Declined: Semi-Slav without ...Nf6 (+ Marshall Gambit and Noteboom) and Exchange Variation lines without ...Nf6.} Nf6 {[%emt 0:00:00]} 7. h3 {[%emt 0:00:48]} Bd6 {[%emt 0:00:00]} 8. Bxd6 {[%emt 0:00:11] White has an edge.} Qxd6 {[%emt 0:00:00]} 9. Qc2 {[%emt 0:01:12]} O-O {[%emt 0:01:19]} 10. e3 {[%emt 0:00:18]} Be6 {[%emt 0:01:10]} 11. Bd3 {[%emt 0:02:44]} Nbd7 {[%emt 0:00:15]} 12. O-O {[%emt 0:02:22]} c5 {[%emt 0:05:31]} 13. dxc5 {[%emt 0:04:37]} Nxc5 {[%emt 0:00:18]} 14. Nd4 {[%emt 0:01:13]} Rac8 {[%emt 0:04:24]} 15. Rad1 {[%emt 0:14:59] [#]} Qe5 $146 {[%emt 0:17:39]} ({Predecessor:} 15... b5 16. Qb1 b4 17. Nce2 Bd7 18. Bc2 Rfe8 19. Ng3 a5 20. Bf5 Be6 {1-0 Le,Q (2709)-Bologan,V (2574) Titled Tuesday intern op 4th Aug 10am blitz 2020 (6)}) 16. Qb1 {[%emt 0:11:37]} Rfd8 {[%emt 0:05:51]} 17. Nce2 {[%emt 0:02:26]} Nfe4 {[%emt 0:02:59]} 18. Nf4 {[%emt 0:03:44]} Bd7 {[%emt 0:07:46]} 19. Nf3 {[%emt 0:04:37]} Qe8 {[%emt 0:03:13]} 20. Nd4 {[%emt 0:07:33]} ({Better is} 20. Nxd5 $14 Nxd3 21. Rxd3 (21. Qxd3 $2 {is the wrong capture.} Bb5 $19 {[%mdl 64] Skewer})) 20... Bc6 {[%emt 0:05:17]} (20... Qe5 $11) 21. Rfe1 $14 {[%emt 0:01:32]} Rc7 {[%emt 0:06:50]} 22. f3 {[%emt 0:03:52]} Nd6 {[%emt 0:01:40]} 23. Bf1 {[%emt 0:00:49] White is more active.} Re7 {[%emt 0:03:38]} 24. Kf2 {[%emt 0:00:05]} (24. Qc2 $16 Ne6 25. Ndxe6 fxe6 26. Bd3) 24... a5 {[%emt 0:03:30]} (24... Ne6 $11) 25. Rc1 {[%emt 0:06:56]} (25. Qc2 $16 Ne6 26. Ndxe6 fxe6 27. Bd3) 25... Ne6 {[%emt 0:07:21]} 26. Ndxe6 {[%emt 0:00:11]} fxe6 {[%emt 0:00:27]} 27. Bd3 $1 {[%emt 0:00:04]} g5 {[%emt 0:02:00]} 28. Ng6 {[%emt 0:00:16]} Rg7 {[%emt 0:00:37]} (28... Rc7 $14 {feels stronger.} 29. b4 axb4) 29. Ne5 $36 {[%emt 0:00:41][%mdl 2048] Keeping Black busy.} Bb5 {[%emt 0:00:59] [#]} (29... Rc7 $16 {was called for.}) 30. Ng4 $1 $18 {[%emt 0:01:36] Nf6+ is the strong threat.} Qf8 {[%emt 0:07:10] Repels Nf6+. Threatens to win with ...h5.} 31. Nxh6+ {[%emt 0:00:43]} Kh8 {[%emt 0:00:01]} 32. Ng4 {[%emt 0:00:15]} Bxd3 {[%emt 0:01:13]} 33. Qxd3 {[%emt 0:00:01]} Nf5 {[%emt 0:00:29]} 34. Qc3 {[%emt 0:03:05]} Qd6 {[%emt 0:02:06]} 35. Qe5 {[%emt 0:00:10]} Qb6 {[%emt 0:01:06]} 36. Nf6 {[%emt 0:07:36] Strongly threatening Nh5.} Qd6 {[%emt 0:04:39]} 37. Qxd6 {[%emt 0:00:51]} Nxd6 {[%emt 0:00:05]} 38. Ng4 {[%emt 0:00:08][%cal Bf6g4,Bg4e5,Be5d3][%mdl 32]} Rdd7 {[%emt 0:01:26]} 39. Rc2 {[%emt 0:00:54]} a4 {[%emt 0:01:04]} 40. Ne5 {[%emt 0:00:00]} Rd8 {[%emt 0:00:00]} 41. Rec1 {[%emt 0:03:29]} Nc4 {[%emt 0:04:50]} (41... Kg8 $142 42. Rd1 Kf8) 42. Nd3 {[%emt 0:03:56]} Ra8 {[%emt 0:02:01]} 43. Rh1 {[%emt 0:13:49]} Rh7 {[%emt 0:02:35]} 44. g3 {[%emt 0:01:29]} ({White should try} 44. e4 $18) 44... Rf8 {[%emt 0:02:57][%cal Og5g4]} 45. b3 {[%emt 0:02:19]} axb3 {[%emt 0:00:35]} 46. axb3 {[%emt 0:00:01]} Nd6 {[%emt 0:00:19]} 47. g4 {[%emt 0:06:53]} Ra8 {[%emt 0:01:20]} 48. Kg3 {[%emt 0:02:06]} Ra3 {[%emt 0:00:50]} 49. Rb2 {[%emt 0:01:28]} (49. Rb1 $18) 49... Nc4 $2 {[%emt 0:04:52] A mistake that costs the game.} (49... Kg7 $16 {might work better.}) 50. bxc4 {[%emt 0:01:41]} Rxd3 {[%emt 0:00:05]} 51. cxd5 {[%emt 0:00:12]} exd5 {[%emt 0:00:35][%mdl 4096] Endgame [#] KRR-KRR} 52. Rhb1 $1 {[%emt 0:03:40]} Re7 {[%emt 0:01:56]} (52... d4 53. Rxb7 Rxb7 54. Rxb7 dxe3) 53. Rb3 {[%emt 0:01:38]} ({Don't do} 53. Rxb7 Rdxe3 54. R1b5 Rxb7 55. Rxb7 Kg8) 53... Rexe3 {[%emt 0:02:07]} (53... Rxb3 54. Rxb3 Kg7) 54. Rxd3 {[%emt 0:00:09]} ({Stronger than} 54. Rxb7 Rxf3+ 55. Kg2 Kg8 $11) 54... Rxd3 {[%emt 0:00:04]} 55. Rxb7 {[%emt 0:00:02] KR-KR} Kg8 {[%emt 0:02:04] Inhibits Rf7.} 56. Re7 {[%emt 0:00:32]} Rd1 {[%emt 0:01:07]} 57. Re5 {[%emt 0:00:10]} Kf7 {[%emt 0:00:32]} 58. Rxg5 {[%emt 0:00:19]} Kf6 {[%emt 0:00:26]} 59. Rf5+ {[%emt 0:00:44]} Kg6 {[%emt 0:00:32]} 60. h4 {[%emt 0:00:23][%cal Bh3h4,Bh4h5][%mdl 32]} d4 {[%emt 0:00:21]} 61. h5+ {[%emt 0:00:33]} Kg7 {[%emt 0:00:02]} 62. Kf4 {[%emt 0:00:45]} d3 {[%emt 0:00:15]} 63. Rd5 {[%emt 0:00:04] And now g5 would win.} Kf7 {[%emt 0:00:42]} 64. Ke3 {[%emt 0:00:06] Weighted Error Value: White=0.18 (very precise) /Black=0.40} 1-0

[Event "European Women-ch 2023"]
[Site "Petrovac"]
[Date "2023.03.21"]
[Round "4.3"]
[White "Buksa, Nataliya"]
[Black "Khotenashvili, Bela"]
[Result "1/2-1/2"]
[ECO "C77"]
[WhiteElo "2405"]
[BlackElo "2491"]
[Annotator "TA"]
[PlyCount "140"]
[EventDate "2023.03.15"]
[EventType "swiss"]
[EventCountry "MNE"]
[SourceTitle "playchess.com"]
[Source "ChessBase"]
[SourceQuality "1"]
[TimeControl "40/5400+30:1800+30"]

{[%evp 11,140,0,3,10,4,13,0,0,2,0,20,0,10,0,0,-2,8,10,10,11,12,4,3,6,22,0,18,0,0,0,0,-28,-16,-25,0,0,0,0,0,0,0,0,0,-150,-160,-142,-148,-139,-131,-411,-393,-402,-393,-581,-8,-8,-8,-8,-8,-8,-8,-8,-8,-23,-23,-23,0,-1083,-1152,-1137,-1129,-1129,-1129,-1120,-1113,-1046,-1029,-1206,-1191,-1172,-1160,-1133,-1122,-1108,-1058,-1016,-904,-1255,-1127,-1419,-1325,-1063,-311,-29972,-29971,-29979,-29980,-29980,-29980,-29974,-160,-153,-145,-138,-131,-131,0,0,0,0,0,0,0,0,0,0,0,0,0,0,0,0,0,0,0,0,0,0,0,0,0]} 1. e4 {[%emt 0:00:01]} e5 {[%emt 0:00:13]} 2. Nf3 {[%emt 0:00:06]} Nc6 {[%emt 0:00:05]} 3. Bb5 {[%emt 0:00:03][%cal Bf1b5,Bb5a4,Ba4b3,Bb3a2][%mdl 32]} a6 {[%emt 0:00:08]} 4. Ba4 {[%emt 0:00:04]} Nf6 {[%emt 0:00:09]} 5. Nc3 {[%emt 0:00:07]} Be7 {[%emt 0:00:56]} 6. d3 {[%emt 0:05:32]} d6 {[%emt 0:02:59]} (6... b5 $5 7. Bb3 $8 d6 $11) 7. a3 {[%emt 0:00:18] C77: Ruy Lopez: 3...a6 4 Ba4 Nf6, unusual lines.} O-O {[%emt 0:02:27]} 8. h3 {[%emt 0:06:04]} b5 {[%emt 0:08:43]} 9. Bb3 {[%emt 0:00:05]} Na5 {[%emt 0:00:04]} 10. Ba2 {[%emt 0:00:16]} c5 {[%emt 0:00:07]} 11. O-O {[%emt 0:08:12]} (11. b4 $5 {[%cal Rb4a5]} Nc6 12. Nd5 $11) 11... Be6 {[%emt 0:03:15]} 12. Bg5 {[%emt 0:05:07]} Nc6 {[%emt 0:11:09] [#]} 13. a4 $146 {[%emt 0:15:43]} ({Predecessor:} 13. Bxf6 Bxf6 14. a4 b4 15. Nd5 g6 16. Qd2 Rb8 17. Bc4 a5 18. c3 Bxd5 19. Bxd5 {0-1 Shyam,S (2502)-Kravtsiv,M (2598) Chessable Masters Play In rapid 2023 (3)}) 13... Rb8 {[%emt 0:07:49]} 14. axb5 {[%emt 0:08:04]} axb5 {[%emt 0:00:09]} 15. Bxf6 {[%emt 0:02:28]} Bxf6 {[%emt 0:00:08]} 16. Nd5 {[%emt 0:00:02]} Bxd5 {[%emt 0:29:22]} 17. Bxd5 {[%emt 0:00:07]} Ne7 {[%emt 0:00:04]} 18. Bb3 {[%emt 0:03:47]} Qc7 {[%emt 0:00:51]} 19. c3 {[%emt 0:16:11]} c4 {[%emt 0:04:57]} 20. Bc2 {[%emt 0:00:05]} Rfd8 {[%emt 0:05:07]} 21. d4 {[%emt 0:10:04]} b4 {[%emt 0:04:14]} 22. Qc1 {[%emt 0:03:45]} h6 {[%emt 0:04:27]} 23. d5 {[%emt 0:00:52]} b3 {[%emt 0:09:21]} 24. Bd1 {[%emt 0:00:04]} Nc8 {[%emt 0:00:05]} 25. Be2 {[%emt 0:07:23]} Nb6 {[%emt 0:00:02]} 26. h4 {[%emt 0:00:13]} Ra8 {[%emt 0:00:41]} 27. g3 {[%emt 0:00:39]} (27. Qe3 $11) 27... Rxa1 $17 {[%emt 0:00:34]} 28. Qxa1 {[%emt 0:00:04]} Ra8 {[%emt 0:00:03] Wards off Qa5} 29. Qc1 {[%emt 0:02:04]} Ra2 {[%emt 0:00:12]} 30. Qd2 $2 {[%emt 0:00:19][%mdl 8192]} (30. Nd2 $17) 30... Qc5 {[%emt 0:00:56]} 31. Rb1 {[%emt 0:01:03]} Na4 $1 {[%emt 0:00:35]} 32. Ne1 {[%emt 0:01:36] [#]} (32. Bf1 $142 Nxb2 33. Qe3 (33. Rxb2 $2 Qa3 $19)) 32... Nxb2 $2 {[%emt 0:01:52]} 33. Rxb2 $11 {[%emt 0:00:13]} Qa3 {[%emt 0:00:05]} 34. Rxa2 {[%emt 0:00:30]} bxa2 {[%emt 0:00:50]} 35. Nc2 {[%emt 0:00:05]} (35. Bxc4 $2 a1=Q 36. Bf1 Q3xc3 37. Qxc3 Qxc3 $19) 35... Qb2 $36 {[%emt 0:01:08][%mdl 2048] Repels Na1. Black is more active.} 36. Qd1 {[%emt 0:00:51]} Qxc3 {[%emt 0:00:01]} 37. Kg2 {[%emt 0:03:33]} Bd8 {[%emt 0:00:02]} 38. Na1 {[%emt 0:00:04][%cal Od1a4]} Bb6 {[%emt 0:00:21]} 39. Qa4 $2 {[%emt 0:00:40][%mdl 8192]} Bxf2 $1 $19 {[%emt 0:04:50]} (39... Qxa1 $2 40. Qe8+ Kh7 41. Bg4 $18) 40. Kxf2 {[%emt 0:00:00]} Qxa1 {[%emt 0:00:00]} 41. Qe8+ {[%emt 0:06:17]} Kh7 {[%emt 0:00:09]} 42. Qxf7 {[%emt 0:00:05]} Qd4+ {[%emt 0:00:11]} 43. Kf3 {[%emt 0:00:04]} Qc5 $1 {[%emt 0:03:31]} ({Inferior is} 43... a1=B 44. Qf5+ Kh8 45. Qf8+ Kh7 46. Qf5+ (46. Qxd6 Qc3+ 47. Kf2 Qd4+ 48. Kf3 Qc3+ 49. Kf2 Qd4+ 50. Kf3 $15) 46... Kh8 47. Qf8+ Kh7 48. Qf5+ $11 (48. Qxd6 Qc3+ 49. Kf2 Qd2 $15)) (43... a1=Q 44. Qf5+ g6 45. Qf7+ Kh8 46. Qe8+ Kh7 47. Qf7+ Kh8 48. Qe8+ Kh7 49. Qf7+ $11) 44. Qf5+ {[%emt 0:23:18]} Kg8 {[%emt 0:00:11]} 45. Qe6+ {[%emt 0:00:05]} Kf8 $1 {[%emt 0:00:59]} 46. Qf5+ {[%emt 0:00:59]} Ke7 {[%emt 0:00:05]} 47. Qe6+ {[%emt 0:00:03] [#]} Kd8 $1 {[%emt 0:01:55]} 48. Qg8+ {[%emt 0:00:05]} Kc7 {[%emt 0:00:02]} 49. Qa8 {[%emt 0:00:07]} c3 {[%emt 0:01:31]} 50. Bb5 {[%emt 0:05:19]} Qxb5 {[%emt 0:04:09][%mdl 4096] Endgame KQ-KQ} 51. Qa7+ {[%emt 0:00:30]} Kd8 $2 {[%emt 0:04:32]} (51... Kc8 52. Qxa2 Kb7) 52. Qa8+ $2 {[%emt 0:00:05]} (52. Qxa2 $19 Qd3+ 53. Kf2 Qxe4 54. Qa5+ Ke8 55. Qxc3 Qxd5 56. Ke1) 52... Ke7 {[%emt 0:00:29]} 53. Qa7+ {[%emt 0:00:24]} Kf6 {[%emt 0:02:15]} 54. Qxa2 {[%emt 0:02:03]} Qd3+ {[%emt 0:00:20]} 55. Kf2 {[%emt 0:00:04]} Qd2+ $2 {[%emt 0:06:56]} (55... c2 {mates} 56. Qa8 Qxe4 57. Qa3 Qd4+ 58. Kf3 Qd1+ 59. Kg2 Qxd5+ 60. Kh3 Qh1+ 61. Kg4 Qd1+ 62. Kh3 c1=Q 63. Qxc1 Qxc1 64. g4 Qg1 65. h5 Qf2 66. g5+ hxg5 67. h6 Kf5 68. hxg7 g4#) 56. Qxd2 $17 {[%emt 0:00:05]} cxd2 {[%emt 0:00:01] KP-KP} 57. Ke2 {[%emt 0:00:04]} g5 {[%emt 0:00:04]} 58. Kxd2 {[%emt 0:00:59] [#]} gxh4 {[%emt 0:00:01]} ({Black should play} 58... Kg6 $1 $17 {( -> ...gxh4)} 59. Kd3 Kh5 60. hxg5 hxg5) 59. gxh4 {[%emt 0:00:04] K3P-K3P. The position is equal.} Kg6 $1 {[%emt 0:00:21]} 60. Kd3 {[%emt 0:00:08] Threatens to win with Kc4.} (60. Kc3 $5) 60... Kh5 {[%emt 0:00:03]} 61. Kc4 $1 {[%emt 0:00:02]} Kxh4 $11 {[%emt 0:00:06] K3P-KPP} 62. Kb5 $1 {[%emt 0:00:02]} Kg3 {[%emt 0:01:57]} (62... h5 $5 63. Kc6 $8 Kg3 64. Kxd6 h4 65. Kxe5 h3 $11) 63. Kc6 {[%emt 0:00:04]} h5 {[%emt 0:00:05]} 64. Kxd6 {[%emt 0:00:03]} h4 {[%emt 0:00:05]} 65. Kxe5 {[%emt 0:00:45] And now d6 would win. KPP-KP} h3 {[%emt 0:00:02]} 66. d6 {[%emt 0:00:04]} h2 {[%emt 0:00:02]} 67. d7 {[%emt 0:00:03]} h1=Q {[%emt 0:00:04]} 68. d8=Q {[%emt 0:00:02] Dodges Qh8+} (68. d8=B {leads to mate.} Qh5+ 69. Ke6 Kf4 70. Be7 Kxe4 71. Bf6 Qf5+ 72. Ke7 Qc5+ 73. Kf7 Kf5 74. Be7 Qc6 75. Bh4 Qe6+ 76. Kg7 Qg6+ 77. Kh8 Ke6 78. Be1 Kf7 79. Bh4 Qh6#) 68... Qh5+ {[%emt 0:00:05]} 69. Ke6 {[%emt 0:00:06]} Qg4+ {[%emt 0:00:05]} 70. Kf7 {[%emt 0:00:10] Strongly threatening Qd6+.} Qxe4 {[%emt 0:00:03] Whites escaped into a draw.   Weighted Error Value: White=0.60/Black=0.36} 1/2-1/2

[Event "European Women-ch 2023"]
[Site "Petrovac"]
[Date "2023.03.21"]
[Round "4.3"]
[White "Zhapova, Yana"]
[Black "Narva, Mai"]
[Result "0-1"]
[ECO "B31"]
[WhiteElo "2269"]
[BlackElo "2389"]
[Annotator "TA"]
[PlyCount "72"]
[EventDate "2023.03.15"]
[EventType "swiss"]
[EventCountry "MNE"]
[SourceTitle "playchess.com"]
[Source "ChessBase"]
[SourceQuality "1"]
[TimeControl "40/5400+30:1800+30"]

{[%evp 17,72,0,0,0,14,6,4,12,17,17,16,0,21,1,25,0,8,-7,0,0,0,-9,-12,-55,-15,-39,-45,-37,-43,-64,-37,-35,-11,-23,-21,-67,-73,-104,-97,-119,-109,-102,-86,-80,-64,-150,-146,-150,-66,-437,-445,-437,-406,-406,-398,-393,-382]} 1. e4 {[%emt 0:00:03]} c5 {[%emt 0:02:45]} 2. Nf3 {[%emt 0:00:25]} Nc6 {[%emt 0:00:20]} 3. Bb5 {[%emt 0:00:21]} g6 {[%emt 0:00:16]} 4. O-O {[%emt 0:00:15]} Bg7 {[%emt 0:00:15]} 5. c3 {[%emt 0:00:25]} Nf6 {[%emt 0:00:51]} 6. Re1 {[%emt 0:00:17]} O-O {[%emt 0:00:40]} 7. d4 {[%emt 0:00:16]} d5 {[%emt 0:00:52]} 8. e5 {[%emt 0:00:14]} Ne4 {[%emt 0:00:12]} 9. Bxc6 {[%emt 0:00:18]} bxc6 {[%emt 0:00:07]} 10. Be3 {[%emt 0:00:23] now scores much better than the old 10.Nbd2. B31: Sicilian: 2...Nc6 3 Bb5 g6.} Rb8 {[%emt 0:00:56]} 11. Qc1 {[%emt 0:00:14]} cxd4 {[%emt 0:01:00]} 12. cxd4 {[%emt 0:00:10] The position is equal.} Bf5 {[%emt 0:01:20]} 13. Nbd2 {[%emt 0:01:22]} Qb6 {[%emt 0:10:54]} 14. b3 {[%emt 0:02:05] [#]} Qb5 $146 {[%emt 0:04:10]} (14... Rfc8 $5 {[%cal Rc6c5]}) ({Predecessor:} 14... f6 15. exf6 Bxf6 16. Nxe4 Bxe4 17. Ne5 Bxe5 18. dxe5 Qb7 19. f3 Bf5 20. e6 Bd3 {1-0 Makarian,R (2442)-Reimanis,R (2421) RUS-LAT Online Battle blitz 2020}) 15. h3 {[%emt 0:08:40]} f6 {[%emt 0:07:44]} 16. exf6 {[%emt 0:08:06]} exf6 {[%emt 0:00:58]} 17. Nf1 {[%emt 0:18:06]} g5 {[%emt 0:12:48]} 18. N3d2 {[%emt 0:05:42][%cal Bf3d2,Bd2b1,Bb1c3][%mdl 32]} h6 {[%emt 0:07:46]} 19. h4 {[%emt 0:03:35]} Rbe8 {[%emt 0:08:28]} 20. Nb1 {[%emt 0:11:54]} Bg6 {[%emt 0:04:37] Strongly threatening ...f5.} 21. f3 {[%emt 0:00:22] Dodges f5} Nd6 {[%emt 0:01:14]} 22. Nc3 {[%emt 0:00:10]} Qb7 {[%emt 0:05:14]} 23. Qd2 {[%emt 0:05:37]} Qb4 {[%emt 0:07:33] Black has more active pieces.} 24. Rac1 {[%emt 0:04:36]} f5 {[%emt 0:06:01]} ({But not} 24... gxh4 25. Ne2 Qb6 26. Bxh6 $11) 25. hxg5 {[%emt 0:03:12]} f4 {[%emt 0:01:52]} 26. Bf2 {[%emt 0:01:11]} (26. Ne2 $11 Qxd2 27. Bxd2 hxg5 28. Rxc6) 26... hxg5 $15 {[%emt 0:00:25]} 27. Rxe8 {[%emt 0:00:56]} Rxe8 {[%emt 0:01:42]} 28. Ne4 {[%emt 0:11:28][%mdl 64] [#] Discovered Attack} Qxd2 {[%emt 0:01:03]} 29. Nexd2 {[%emt 0:00:02]} Nb5 {[%emt 0:06:22]} 30. Rxc6 {[%emt 0:00:16]} Bf7 {[%emt 0:00:20]} (30... Nxd4 $2 31. Rxg6 Ne6 32. Bxa7 $18) 31. g3 {[%emt 0:03:39]} (31. g4 $15) 31... Nxd4 $17 {[%emt 0:01:27]} ({Weaker is} 31... Bxd4 32. Bxd4 Nxd4 33. Ra6 $17) 32. Rc5 {[%emt 0:03:20]} Bf6 {[%emt 0:02:56]} (32... Ne2+ $17 33. Kh1 fxg3 34. Bxg3 Bd4) 33. Nh2 $2 {[%emt 0:01:26][%mdl 8192] [#] This move loses the game for White.} (33. gxf4 $15 Ne2+ 34. Kh1) 33... fxg3 $19 {[%emt 0:01:12]} 34. Bxg3 {[%emt 0:00:07]} Ne2+ {[%emt 0:00:20]} 35. Kg2 {[%emt 0:00:05]} Nxg3 {[%emt 0:00:19]} 36. Kxg3 {[%emt 0:00:08]} Be5+ {[%emt 0:00:15] Weighted Error Value: White=0.39/Black=0.11 (very precise)} 0-1

[Event "European Women-ch 2023"]
[Site "Petrovac"]
[Date "2023.03.21"]
[Round "4.3"]
[White "Koljevic, Nikolina"]
[Black "Sieber, Fiona"]
[Result "0-1"]
[ECO "B91"]
[WhiteElo "2042"]
[BlackElo "2217"]
[Annotator "TA"]
[PlyCount "132"]
[EventDate "2023.03.15"]
[EventType "swiss"]
[EventCountry "MNE"]
[SourceTitle "playchess.com"]
[Source "ChessBase"]
[SourceQuality "1"]
[TimeControl "40/5400+30:1800+30"]

{[%evp 19,132,20,23,0,25,19,16,8,14,8,0,0,1,4,18,0,0,0,8,8,8,16,27,6,7,0,0,0,0,-10,-8,-60,-56,-89,-75,-145,0,0,0,0,0,-67,-45,-174,-173,-173,0,0,0,0,0,0,0,0,0,0,0,0,0,0,0,0,0,0,0,0,0,0,0,0,0,0,0,0,0,0,0,-8,-8,-8,-8,-8,-8,-8,-8,-8,-8,-8,-8,-8,-8,-8,-8,-8,-8,-8,-8,-8,-8,-8,-8,-8,-8,-8,-8,-29964,-29965,-29968,-29969,-29968,-29970,-29968,-29967,-29964,-12366]} 1. e4 {[%emt 0:00:02]} c5 {[%emt 0:00:02]} 2. Nf3 {[%emt 0:00:07]} d6 {[%emt 0:00:03]} 3. d4 {[%emt 0:00:09]} cxd4 {[%emt 0:00:02]} 4. Nxd4 {[%emt 0:00:18]} Nf6 {[%emt 0:00:04]} 5. Nc3 {[%emt 0:00:15]} a6 {[%emt 0:00:03]} 6. g3 {[%emt 0:00:28]} g6 {[%emt 0:00:05]} 7. Bg2 {[%emt 0:00:21]} Bg7 {[%emt 0:00:02]} 8. O-O {[%emt 0:01:11]} O-O {[%emt 0:00:05]} 9. h3 {[%emt 0:04:47]} Nc6 {[%emt 0:00:59]} 10. Be3 {[%emt 0:02:44] The main line 10.Be3 scores better than 10.Nde2.} Bd7 {[%emt 0:00:29]} 11. f4 {[%emt 0:06:17] B91: Sicilian Najdorf: 6 g3.} Nxd4 {[%emt 0:20:34]} 12. Bxd4 {[%emt 0:00:32]} (12. Qxd4 Nh5 13. Qd3 Nxg3 $17) 12... Bc6 {[%emt 0:00:10] [#]} 13. Nd5 $146 {[%emt 0:22:54] The position is equal.} ({Predecessor:} 13. Qd3 Rc8 14. a4 e6 15. a5 Qe7 16. Rad1 e5 17. fxe5 dxe5 18. Bb6 Nd7 19. Nd5 Bxd5 20. Qxd5 Nxb6 21. axb6 Rxc2 {0-1 Kuttner,J (1032)-Lauer,F (1095) ZN-2017-0-03539}) 13... e6 {[%emt 0:04:12]} 14. Nxf6+ {[%emt 0:01:30]} Bxf6 {[%emt 0:00:01]} 15. Bxf6 {[%emt 0:11:02]} Qxf6 {[%emt 0:00:05]} 16. c3 {[%emt 0:00:04][%cal Bc2c3,Bc3d4,Bd4d5][%mdl 32]} Rfd8 {[%emt 0:10:45]} 17. Qd4 {[%emt 0:06:18]} Qxd4+ {[%emt 0:12:24]} 18. cxd4 {[%emt 0:00:08]} e5 {[%emt 0:00:03]} 19. fxe5 {[%emt 0:08:17]} dxe5 {[%emt 0:00:04]} 20. d5 {[%emt 0:00:04]} Bb5 {[%emt 0:00:34]} 21. Rfc1 {[%emt 0:02:43]} Rac8 {[%emt 0:00:08] Repels Rc7} 22. Kf2 {[%emt 0:05:50]} Kf8 {[%emt 0:01:37]} 23. Ke3 {[%emt 0:01:32]} Ke7 {[%emt 0:00:19]} 24. h4 {[%emt 0:03:10]} Bd7 {[%emt 0:01:47]} 25. b4 {[%emt 0:01:59]} (25. Bf3 $11) 25... Kd6 $15 {[%emt 0:01:15]} 26. Kd2 {[%emt 0:10:04]} f5 {[%emt 0:01:15]} 27. h5 {[%emt 0:07:04]} g5 {[%emt 0:06:15]} (27... gxh5 $17 {White must now prevent ...Rg8.} 28. Rxc8 Rxc8) 28. exf5 $11 {[%emt 0:02:11]} Bxf5 {[%emt 0:00:08]} 29. Ke3 {[%emt 0:01:08] Dodges e4} h6 {[%emt 0:07:27]} 30. Bf3 {[%emt 0:00:59]} (30. Rc5 $11 b6 31. Rc6+ Rxc6 32. dxc6) 30... e4 {[%emt 0:06:54] Black is more active.} (30... Rxc1 {simplifies} 31. Rxc1 Rc8 32. Rxc8 Bxc8 33. Ke4 b5) 31. g4 {[%emt 0:00:51]} (31. Bxe4 $2 {loses.} Re8 32. Rxc8 Rxe4+ 33. Kf3 g4+ 34. Kf2 Bxc8 $19) (31. Be2 $1 $15) 31... exf3 $19 {[%emt 0:14:14]} 32. gxf5 {[%emt 0:00:04]} Rf8 $2 {[%emt 0:00:28]} (32... Rxc1 $19 33. Rxc1 Rf8 34. Kxf3 Rxf5+ 35. Kg3 Rf4) 33. Rxc8 $11 {[%emt 0:00:50]} Rxc8 {[%emt 0:00:02]} 34. Kxf3 {[%emt 0:00:16]} Kxd5 {[%emt 0:02:24][%mdl 4096] Endgame KR-KR} 35. Re1 {[%emt 0:00:54]} Rf8 {[%emt 0:01:29]} 36. Kg4 {[%emt 0:00:19]} Rf6 {[%emt 0:01:12] Inhibits Re6.} 37. Re7 {[%emt 0:00:43]} b6 {[%emt 0:01:17]} 38. Rg7 {[%emt 0:00:41]} Ke5 {[%emt 0:05:44]} 39. Rg6 {[%emt 0:00:30]} Rd6 {[%emt 0:00:59]} 40. a3 {[%emt 0:00:00]} ({Avoid the trap} 40. Rxd6 $2 Kxd6 41. f6 Ke6 $19) 40... b5 {[%emt 0:00:00]} 41. Kf3 {[%emt 0:01:57]} (41. Rxd6 Kxd6 42. f6 Ke6 $19) 41... Rd3+ {[%emt 0:03:25]} 42. Ke2 $1 {[%emt 0:00:23]} Rxa3 {[%emt 0:02:16]} 43. f6 {[%emt 0:01:04][%cal Of6f7]} Ke6 {[%emt 0:03:49]} 44. Rxh6 {[%emt 0:01:29]} Rh3 {[%emt 0:08:14]} 45. f7+ {[%emt 0:04:05]} Kxf7 {[%emt 0:00:14]} 46. Rxa6 {[%emt 0:00:03]} Rxh5 {[%emt 0:00:10]} 47. Rb6 {[%emt 0:00:07]} g4 {[%emt 0:00:04] [#] Hoping for ...Rg5.} 48. Kf2 {[%emt 0:00:25]} Rg5 {[%emt 0:00:20] aiming for ...g3+.} 49. Kg3 {[%emt 0:01:29]} Ke7 {[%emt 0:00:07]} 50. Ra6 $1 {[%emt 0:12:28]} Kd7 {[%emt 0:00:07]} 51. Rf6 {[%emt 0:05:55]} Kc7 {[%emt 0:00:15]} 52. Re6 {[%emt 0:01:24]} Kb7 {[%emt 0:00:16]} 53. Rf6 {[%emt 0:01:18]} Rg8 {[%emt 0:00:07]} 54. Rf5 {[%emt 0:02:04]} Kc6 {[%emt 0:00:17]} 55. Rc5+ {[%emt 0:00:13]} Kb6 {[%emt 0:00:05] ...Rd8 would be deadly.} 56. Rf5 {[%emt 0:00:09]} Rg6 {[%emt 0:00:26]} 57. Re5 $1 {[%emt 0:01:03]} Rc6 {[%emt 0:05:35] ...Rc4 is the strong threat.} 58. Kxg4 {[%emt 0:00:15]} Rc4+ {[%emt 0:00:06]} 59. Kf3 $1 {[%emt 0:00:05]} Rxb4 {[%emt 0:00:04]} 60. Ke3 {[%emt 0:00:49]} Rc4 {[%emt 0:01:36]} 61. Kd3 {[%emt 0:01:05]} Rc1 {[%emt 0:00:09] ( -> ...Ka5)} (61... Ka5 $5 62. Re1 $8 Rc5 $11) 62. Re2 $2 {[%emt 0:02:09][%mdl 8192] [#]} (62. Kd2 $11 Rc4 63. Re1) 62... Ka5 $1 {[%emt 0:01:24] Black mates.} 63. Re4 {[%emt 0:01:47]} b4 {[%emt 0:00:36]} 64. Kd2 {[%emt 0:00:41]} Rc8 {[%emt 0:00:12]} 65. Re7 {[%emt 0:00:45]} Ka4 {[%emt 0:00:11]} 66. Rb7 {[%emt 0:00:28]} Ka3 {[%emt 0:00:19] Weighted Error Value: White=0.12 (very precise) /Black=0.12 (very precise)} (66... b3 $142 67. Ra7+ Kb4 68. Rf7 Ka3 69. Rf6 Ka2 70. Rb6 b2 71. Ra6+ Kb1 72. Ra7 Rb8 73. Ra6 Rd8+ 74. Ke2 Rd4 75. Ke3 Rd5 76. Ke2 Kc2 77. Rc6+ Kb3 78. Rb6+ Ka3 79. Rb8 Ra5 80. Kd3 Ka2 81. Kd2 b1=Q 82. Rxb1 Kxb1 83. Kc3 Ra4 84. Kb3 Rh4 85. Kc3 Kc1 86. Kd3 Kd1 87. Ke3 Kc2 88. Ke2 Re4+ 89. Kf3 Kd3 90. Kf2 Rf4+ 91. Kg3 Ke3 92. Kg2 Rg4+ 93. Kh3 Kf3 94. Kh2 Rh4+ 95. Kg1 Rh5 96. Kf1 Rh1#) 0-1